[Event "RUS-chT Men Rapid 2019"]
[Site "Sochi"]
[Date "2019.10.18"]
[Round "5.12"]
[White "Remizov, Yaroslav"]
[Black "Apryshko, Gleb"]
[Result "0-1"]
[ECO "B06"]
[WhiteElo "2394"]
[BlackElo "2382"]
[Annotator "NA"]
[PlyCount "82"]
[EventDate "2019.10.18"]
[EventType "swiss"]
[EventCountry "RUS"]
[SourceTitle "playchess.com"]
[Source "ChessBase"]
[SourceQuality "1"]
[TimeControl "900+10"]

1. e4 {[%emt 0:00:00]} g6 {[%emt 0:00:00]} 2. d4 {[%emt 0:00:02]} Bg7 {[%emt 0:00:00]} 3. Nf3 {[%emt 0:00:07]} d6 {[%emt 0:00:00]} 4. Nc3 {[%emt 0:00:13]} a6 {[%emt 0:00:18]} 5. Be3 {[%emt 0:00:08]} Nd7 {[%emt 0:00:04]} 6. Bd3 {[%emt 0:00:16]} e6 {[%emt 0:00:13]} 7. Qd2 {[%emt 0:01:29]} h6 {[%emt 0:00:01]} 8. O-O {[%emt 0:01:07]} Ne7 {[%emt 0:00:14]} 9. Ne2 {[%emt 0:00:35]} b6 {[%emt 0:00:17]} 10. Ng3 {[%emt 0:01:28]} Bb7 {[%emt 0:00:02]} 11. h3 {[%emt 0:00:20]} c5 {[%emt 0:00:11]} 12. c3 {[%emt 0:00:19]} Qc7 {[%emt 0:00:02]} 13. Nh2 {[%emt 0:01:20]} f5 {[%emt 0:06:15]} 14. Rae1 {[%emt 0:03:39]} O-O-O {[%emt 0:01:30]} 15. Qe2 {[%emt 0:01:42]} b5 {[%emt 0:00:44]} 16. a4 {[%emt 0:02:06]} c4 {[%emt 0:00:35]} 17. Bc2 {[%emt 0:00:03]} Nf6 {[%emt 0:00:55]} 18. axb5 {[%emt 0:00:38]} axb5 {[%emt 0:00:01]} 19. d5 {[%emt 0:01:39]} e5 {[%emt 0:02:49]} 20. exf5 {[%emt 0:00:28]} g5 {[%emt 0:00:09]} 21. Ra1 {[%emt 0:00:24]} Nexd5 {[%emt 0:00:13]} 22. Ra7 {[%emt 0:00:14]} Qc6 {[%emt 0:00:20]} 23. Ne4 {[%emt 0:00:17]} Nxe4 {[%emt 0:00:04]} 24. Bxe4 {[%emt 0:00:13]} Nxc3 {[%emt 0:00:05]} 25. Bxc6 {[%emt 0:00:10]} Nxe2+ {[%emt 0:00:02]} 26. Kh1 {[%emt 0:00:00]} Bxc6 {[%emt 0:00:04]} 27. Rxg7 {[%emt 0:00:02]} Rhf8 {[%emt 0:01:36]} 28. Ng4 {[%emt 0:00:20]} Rxf5 {[%emt 0:00:44]} 29. Re1 {[%emt 0:00:17]} Nf4 {[%emt 0:00:10]} 30. Bxf4 {[%emt 0:00:08]} Rxf4 {[%emt 0:00:09]} 31. Kg1 {[%emt 0:00:12]} Rd4 {[%emt 0:01:23]} 32. Nxh6 {[%emt 0:00:10]} Rd2 {[%emt 0:00:02]} 33. Nf5 {[%emt 0:00:11]} Rxb2 {[%emt 0:00:16]} 34. Ra1 {[%emt 0:00:08]} Be4 {[%emt 0:00:27]} 35. Ra6 {[%emt 0:00:10]} Rd2 {[%emt 0:00:18]} 36. Ne7+ {[%emt 0:00:11]} Kb7 {[%emt 0:00:06]} 37. Ra1 {[%emt 0:00:11]} Rd7 {[%emt 0:00:13]} 38. Ra5 {[%emt 0:00:09]} Rb2 {[%emt 0:00:10]} 39. Ra3 {[%emt 0:00:08]} Rb3 {[%emt 0:00:11]} 40. Ra1 {[%emt 0:00:11]} c3 {[%emt 0:00:02]} 41. f3 {[%emt 0:00:01]} c2 {[%emt 0:00:02]} 0-1

[Event "RUS-chT Men Rapid 2019"]
[Site "Sochi"]
[Date "2019.10.18"]
[Round "5.13"]
[White "Shcherbin, Matvei"]
[Black "Yatzenko, Anton"]
[Result "0-1"]
[ECO "C45"]
[WhiteElo "2366"]
[BlackElo "2383"]
[Annotator "NA"]
[PlyCount "102"]
[EventDate "2019.10.18"]
[EventType "swiss"]
[EventCountry "RUS"]
[SourceTitle "playchess.com"]
[Source "ChessBase"]
[SourceQuality "1"]
[TimeControl "900+10"]

1. e4 {[%emt 0:00:00]} e5 {[%emt 0:00:00]} 2. Nf3 {[%emt 0:00:00]} Nc6 {[%emt 0:00:00]} 3. d4 {[%emt 0:00:00]} exd4 {[%emt 0:00:00]} 4. Nxd4 {[%emt 0:00:00]} Bc5 {[%emt 0:00:00]} 5. Nb3 {[%emt 0:00:00]} Bb6 {[%emt 0:00:00]} 6. Nc3 {[%emt 0:00:02]} Nf6 {[%emt 0:00:00]} 7. Qe2 {[%emt 0:00:05]} d6 {[%emt 0:00:02]} 8. Be3 {[%emt 0:00:02]} Be6 {[%emt 0:00:09]} 9. O-O-O {[%emt 0:00:12]} Qe7 {[%emt 0:00:31]} 10. Nd5 {[%emt 0:01:38]} Bxd5 {[%emt 0:00:01]} 11. exd5 {[%emt 0:00:01]} Ne5 {[%emt 0:00:14]} 12. Nd4 {[%emt 0:02:53]} O-O-O {[%emt 0:01:10]} 13. Nf5 {[%emt 0:00:27]} Qf8 {[%emt 0:01:12]} 14. Bxb6 {[%emt 0:00:54]} axb6 {[%emt 0:00:04]} 15. f4 {[%emt 0:00:03]} Ned7 {[%emt 0:00:11]} 16. Qc4 {[%emt 0:00:31]} Re8 {[%emt 0:01:25]} 17. Bd3 {[%emt 0:01:00]} Nc5 {[%emt 0:02:05]} 18. b4 {[%emt 0:00:05]} Nxd3+ {[%emt 0:00:42]} 19. Rxd3 {[%emt 0:00:02]} Re4 {[%emt 0:00:22]} 20. Rd4 {[%emt 0:00:43]} Rxd4 {[%emt 0:00:31]} 21. Qxd4 {[%emt 0:00:01]} Qd8 {[%emt 0:00:42]} 22. Re1 {[%emt 0:01:14]} Re8 {[%emt 0:00:01]} 23. Rxe8 {[%emt 0:00:16]} Qxe8 {[%emt 0:00:01]} 24. Nxg7 {[%emt 0:00:51]} Qe1+ {[%emt 0:01:19]} 25. Kb2 {[%emt 0:00:01]} Ne4 {[%emt 0:00:50]} 26. Nf5 {[%emt 0:04:22]} b5 {[%emt 0:00:00]} 27. Qe3 {[%emt 0:02:46]} Qxb4+ {[%emt 0:00:03]} 28. Kc1 {[%emt 0:00:01]} Kb8 {[%emt 0:00:59]} 29. a3 Qc4 {[%emt 0:00:39]} 30. Qd3 {[%emt 0:00:45]} Qxd3 {[%emt 0:00:53]} 31. cxd3 {[%emt 0:00:01]} Nc3 {[%emt 0:00:01]} 32. Ne7 {[%emt 0:01:08]} Ne2+ {[%emt 0:00:02]} 33. Kd2 {[%emt 0:00:00]} Nxf4 {[%emt 0:00:01]} 34. g3 {[%emt 0:00:01]} Ng6 {[%emt 0:00:21]} 35. Ng8 {[%emt 0:00:00]} Kc8 {[%emt 0:00:23]} 36. Nf6 {[%emt 0:00:02]} Nf8 {[%emt 0:00:32]} 37. Ke3 {[%emt 0:00:04]} Kd8 {[%emt 0:00:02]} 38. g4 {[%emt 0:00:22]} c5 {[%emt 0:00:15]} 39. dxc6 {[%emt 0:00:15]} bxc6 {[%emt 0:00:01]} 40. h4 {[%emt 0:00:15]} Ke7 {[%emt 0:00:09]} 41. g5 {[%emt 0:00:02]} Ke6 {[%emt 0:00:11]} 42. Ng4 {[%emt 0:00:24]} c5 {[%emt 0:00:40]} 43. Kf4 {[%emt 0:00:26]} Nd7 {[%emt 0:00:36]} 44. h5 {[%emt 0:00:07]} Nb6 {[%emt 0:00:39]} 45. Ke4 {[%emt 0:00:12]} d5+ {[%emt 0:00:54]} 46. Kf4 {[%emt 0:00:03]} b4 {[%emt 0:00:01]} 47. axb4 {[%emt 0:00:06]} cxb4 {[%emt 0:00:01]} 48. Ne3 {[%emt 0:00:20]} b3 {[%emt 0:00:01]} 49. Nd1 {[%emt 0:00:00]} Na4 {[%emt 0:00:01]} 50. h6 {[%emt 0:00:26]} b2 {[%emt 0:00:03]} 51. Nxb2 {[%emt 0:00:02]} Nxb2 {[%emt 0:00:01] Ke5+ Kxe5} 0-1

[Event "RUS-chT Men Rapid 2019"]
[Site "Sochi"]
[Date "2019.10.18"]
[Round "5.14"]
[White "Goltsev, Dmitry"]
[Black "Eraschenkov, Denis"]
[Result "1/2-1/2"]
[ECO "C42"]
[WhiteElo "2309"]
[BlackElo "2382"]
[Annotator "NA"]
[PlyCount "131"]
[EventDate "2019.10.18"]
[EventType "swiss"]
[EventCountry "RUS"]
[SourceTitle "playchess.com"]
[Source "ChessBase"]
[SourceQuality "1"]
[TimeControl "900+10"]

1. e4 {[%emt 0:00:00]} e5 {[%emt 0:00:00]} 2. Nf3 {[%emt 0:00:00]} Nf6 {[%emt 0:00:00]} 3. Nxe5 {[%emt 0:00:00]} d6 {[%emt 0:00:00]} 4. Nc4 {[%emt 0:00:00]} Nxe4 {[%emt 0:00:00]} 5. Nc3 {[%emt 0:00:00]} Nf6 {[%emt 0:00:37]} 6. d4 {[%emt 0:00:00]} Be7 {[%emt 0:00:54]} 7. Be2 {[%emt 0:00:01]} O-O {[%emt 0:00:04]} 8. O-O {[%emt 0:00:03]} Nbd7 {[%emt 0:00:30]} 9. Ne3 {[%emt 0:00:11]} Re8 {[%emt 0:00:06]} 10. Qd3 {[%emt 0:00:09]} g6 {[%emt 0:01:19]} 11. f4 {[%emt 0:01:08]} Bf8 {[%emt 0:00:34]} 12. Bf3 {[%emt 0:00:11]} Bg7 {[%emt 0:00:18]} 13. Bd2 {[%emt 0:00:23]} Nf8 {[%emt 0:03:40]} 14. Rae1 {[%emt 0:00:37]} c5 {[%emt 0:00:55]} 15. dxc5 {[%emt 0:00:45]} dxc5 {[%emt 0:00:05]} 16. Qxd8 {[%emt 0:00:09]} Rxd8 {[%emt 0:00:01]} 17. Bc1 {[%emt 0:00:07]} Ne6 {[%emt 0:00:30]} 18. Ned5 {[%emt 0:00:59]} Nxd5 {[%emt 0:00:22]} 19. Nxd5 {[%emt 0:00:03]} Nd4 {[%emt 0:01:43]} 20. Be4 {[%emt 0:02:54]} Kf8 {[%emt 0:01:21]} 21. c3 {[%emt 0:02:07]} Bf5 {[%emt 0:01:38]} 22. Bxf5 {[%emt 0:00:57]} Nxf5 {[%emt 0:00:04]} 23. Rd1 {[%emt 0:00:03]} Rd6 {[%emt 0:01:33]} 24. Ne3 {[%emt 0:01:24]} Rad8 {[%emt 0:00:10]} 25. Rxd6 {[%emt 0:00:03]} Nxd6 {[%emt 0:00:09]} 26. Rd1 {[%emt 0:00:07]} f5 {[%emt 0:00:43]} 27. g4 {[%emt 0:01:53]} fxg4 {[%emt 0:00:14]} 28. Nxg4 {[%emt 0:00:03]} Nf7 {[%emt 0:00:12]} 29. Rxd8+ {[%emt 0:00:32]} Nxd8 {[%emt 0:00:01]} 30. Kf2 {[%emt 0:00:01]} Kf7 {[%emt 0:00:05]} 31. Kf3 {[%emt 0:00:11]} Ke6 {[%emt 0:00:05]} 32. Nf2 {[%emt 0:00:10]} Nf7 {[%emt 0:01:00]} 33. Ne4 {[%emt 0:00:06]} b6 {[%emt 0:00:04]} 34. Be3 {[%emt 0:00:04]} Bf8 {[%emt 0:00:17]} 35. b3 {[%emt 0:00:21]} Be7 {[%emt 0:00:04]} 36. c4 {[%emt 0:00:02]} h5 {[%emt 0:00:26]} 37. Nc3 {[%emt 0:00:08]} Nd8 {[%emt 0:00:18]} 38. Ke4 {[%emt 0:00:14]} Bd6 {[%emt 0:00:36]} 39. Nd5 {[%emt 0:00:35]} Nf7 {[%emt 0:00:08]} 40. Bd2 {[%emt 0:00:17]} Bb8 {[%emt 0:00:16]} 41. a4 {[%emt 0:00:15]} Nd6+ {[%emt 0:00:07]} 42. Kd3 {[%emt 0:00:19]} Nf5 {[%emt 0:00:24]} 43. a5 {[%emt 0:00:05]} Nd4 {[%emt 0:00:18]} 44. b4 {[%emt 0:00:32]} Nf3 {[%emt 0:00:02]} 45. Be3 {[%emt 0:01:15]} cxb4 {[%emt 0:00:15]} 46. a6 {[%emt 0:00:16]} Nxh2 {[%emt 0:00:07]} 47. Nxb4 {[%emt 0:00:01]} Kd7 {[%emt 0:00:06]} 48. Ke4 {[%emt 0:00:45]} Ng4 {[%emt 0:00:02]} 49. Bg1 {[%emt 0:00:06]} Nf6+ {[%emt 0:00:02]} 50. Kf3 {[%emt 0:00:05]} Bd6 {[%emt 0:00:14]} 51. Nd3 {[%emt 0:00:23]} Kc6 {[%emt 0:00:11]} 52. Ne5+ {[%emt 0:00:29]} Bxe5 {[%emt 0:00:03]} 53. fxe5 {[%emt 0:00:01]} Ne8 {[%emt 0:00:08]} 54. Kf4 {[%emt 0:00:06]} Nc7 {[%emt 0:00:21]} 55. Kg5 {[%emt 0:00:02]} Nxa6 {[%emt 0:00:17]} 56. Bf2 {[%emt 0:00:09]} Nc7 {[%emt 0:00:22]} 57. Kxg6 {[%emt 0:00:02]} a5 {[%emt 0:00:08]} 58. Kxh5 {[%emt 0:00:03]} a4 {[%emt 0:00:07]} 59. Kg6 {[%emt 0:00:04]} Ne6 {[%emt 0:00:11]} 60. Kf6 {[%emt 0:00:09]} Nc7 {[%emt 0:00:17]} 61. e6 {[%emt 0:00:13]} a3 {[%emt 0:00:03]} 62. Bd4 {[%emt 0:00:05]} a2 {[%emt 0:00:07]} 63. Ke7 {[%emt 0:00:11]} b5 {[%emt 0:00:21]} 64. cxb5+ {[%emt 0:00:04]} Kxb5 {[%emt 0:00:07]} 65. Kd7 {[%emt 0:00:03]} Nxe6 {[%emt 0:00:03]} 66. Kxe6 {[%emt 0:00:02]} 1/2-1/2

[Event "RUS-chT Men Rapid 2019"]
[Site "Sochi"]
[Date "2019.10.18"]
[Round "5.15"]
[White "Keosidi, Konstantin"]
[Black "Kulik, Artur"]
[Result "1-0"]
[ECO "B24"]
[WhiteElo "2400"]
[BlackElo "2014"]
[Annotator "NA"]
[PlyCount "129"]
[EventDate "2019.10.18"]
[EventType "swiss"]
[EventCountry "RUS"]
[SourceTitle "playchess.com"]
[Source "ChessBase"]
[SourceQuality "1"]
[TimeControl "900+10"]

1. e4 {[%emt 0:00:00]} c5 {[%emt 0:00:00]} 2. Nc3 {[%emt 0:00:00]} Nc6 {[%emt 0:00:00]} 3. Bb5 {[%emt 0:00:00]} Nd4 {[%emt 0:00:05]} 4. Bc4 {[%emt 0:00:00]} g6 {[%emt 0:00:05]} 5. Nf3 {[%emt 0:00:00]} Bg7 {[%emt 0:00:16]} 6. d3 {[%emt 0:00:09]} Nf6 {[%emt 0:02:24]} 7. O-O {[%emt 0:03:43]} O-O {[%emt 0:01:22]} 8. Nxd4 {[%emt 0:00:13]} cxd4 {[%emt 0:00:02]} 9. Nd5 {[%emt 0:00:36]} Nxd5 {[%emt 0:03:06]} 10. Bxd5 {[%emt 0:00:02]} e6 {[%emt 0:00:16]} 11. Bb3 {[%emt 0:00:02]} d5 {[%emt 0:00:27]} 12. exd5 {[%emt 0:00:09]} exd5 {[%emt 0:00:01]} 13. Qf3 {[%emt 0:00:26]} Be6 {[%emt 0:00:03]} 14. Bf4 {[%emt 0:00:13]} Qd7 {[%emt 0:00:56]} 15. Rfe1 {[%emt 0:01:09]} Rae8 {[%emt 0:02:27]} 16. Qg3 {[%emt 0:01:24]} f5 {[%emt 0:00:39]} 17. Be5 {[%emt 0:02:18]} Bxe5 {[%emt 0:00:35]} 18. Qxe5 {[%emt 0:00:16]} Qg7 {[%emt 0:00:15]} 19. Qd6 {[%emt 0:02:58]} Bf7 {[%emt 0:00:46]} 20. Qd7 {[%emt 0:00:43]} Be6 {[%emt 0:00:29]} 21. Qd6 {[%emt 0:00:05]} Bf7 {[%emt 0:00:05]} 22. h3 {[%emt 0:00:14]} g5 {[%emt 0:02:31]} 23. Bxd5 {[%emt 0:00:12]} Rd8 {[%emt 0:00:26]} 24. Bxf7+ {[%emt 0:00:04]} Qxf7 {[%emt 0:00:01]} 25. Qe7 {[%emt 0:00:35]} Qxe7 {[%emt 0:00:30]} 26. Rxe7 {[%emt 0:00:02]} Rf7 {[%emt 0:00:01]} 27. Rae1 {[%emt 0:00:08]} Kf8 {[%emt 0:00:35]} 28. Rxf7+ {[%emt 0:00:51]} Kxf7 {[%emt 0:00:01]} 29. Re5 {[%emt 0:00:01]} Kf6 {[%emt 0:00:01]} 30. Rc5 {[%emt 0:00:01]} Rd7 {[%emt 0:00:20]} 31. Kf1 {[%emt 0:00:37]} Re7 {[%emt 0:00:23]} 32. a4 {[%emt 0:00:39]} h5 {[%emt 0:00:20]} 33. a5 {[%emt 0:00:14]} h4 {[%emt 0:00:27]} 34. b4 {[%emt 0:00:55]} Re6 {[%emt 0:00:27]} 35. Rc7 {[%emt 0:00:13]} Re7 {[%emt 0:00:03]} 36. Rxe7 {[%emt 0:00:52]} Kxe7 {[%emt 0:00:01]} 37. Ke2 {[%emt 0:00:08]} Kd6 {[%emt 0:00:05]} 38. Kd2 {[%emt 0:00:08]} g4 {[%emt 0:00:15]} 39. f3 {[%emt 0:00:51]} gxf3 {[%emt 0:00:02]} 40. gxf3 {[%emt 0:00:00]} Ke5 {[%emt 0:00:01]} 41. c3 {[%emt 0:00:17]} dxc3+ 42. Kxc3 {[%emt 0:00:01]} Kd5 {[%emt 0:00:54]} 43. d4 {[%emt 0:00:06]} b5 {[%emt 0:00:14]} 44. axb6 {[%emt 0:00:10]} axb6 {[%emt 0:00:01]} 45. b5 {[%emt 0:00:10]} Ke6 {[%emt 0:00:12]} 46. Kc4 {[%emt 0:00:12]} f4 {[%emt 0:00:07]} 47. Kc3 {[%emt 0:00:16]} Kd6 {[%emt 0:00:19]} 48. Kd2 {[%emt 0:00:05]} Ke6 {[%emt 0:00:02]} 49. Kd3 {[%emt 0:00:02]} Kd5 {[%emt 0:00:01]} 50. Kc3 {[%emt 0:00:01]} Ke6 {[%emt 0:00:13]} 51. Kc4 {[%emt 0:00:02]} Kd6 {[%emt 0:00:02]} 52. d5 {[%emt 0:00:06]} Ke5 {[%emt 0:00:01]} 53. d6 {[%emt 0:00:01]} Kxd6 {[%emt 0:00:01]} 54. Kd4 {[%emt 0:00:01]} Ke6 {[%emt 0:00:14]} 55. Ke4 Kd6 56. Kxf4 {[%emt 0:00:24]} Kc5 {[%emt 0:00:01]} 57. Ke5 {[%emt 0:00:19]} Kxb5 {[%emt 0:00:02]} 58. f4 {[%emt 0:00:00]} Kc4 {[%emt 0:00:01]} 59. f5 {[%emt 0:00:03]} b5 {[%emt 0:00:00]} 60. f6 {[%emt 0:00:01]} b4 {[%emt 0:00:01]} 61. f7 {[%emt 0:00:01]} b3 {[%emt 0:00:00]} 62. f8=Q {[%emt 0:00:08]} b2 {[%emt 0:00:05]} 63. Qb8 {[%emt 0:00:05]} Kc3 {[%emt 0:00:03]} 64. Kf4 {[%emt 0:00:03]} Kc2 {[%emt 0:00:03]} 65. Ke4 1-0

[Event "RUS-chT Men Rapid 2019"]
[Site "Sochi"]
[Date "2019.10.18"]
[Round "5.16"]
[White "Kolchin, Maxim"]
[Black "Dianov, Alexey"]
[Result "1-0"]
[ECO "D02"]
[WhiteElo "2077"]
[BlackElo "2158"]
[Annotator "NA"]
[PlyCount "111"]
[EventDate "2019.10.18"]
[EventType "swiss"]
[EventCountry "RUS"]
[SourceTitle "playchess.com"]
[Source "ChessBase"]
[SourceQuality "1"]
[TimeControl "900+10"]

1. d4 {[%emt 0:00:00]} d5 {[%emt 0:00:00]} 2. Nf3 {[%emt 0:00:00]} c5 {[%emt 0:00:00]} 3. c3 {[%emt 0:00:00]} Nf6 {[%emt 0:00:01]} 4. Bf4 {[%emt 0:00:05]} Qb6 {[%emt 0:00:48]} 5. Qb3 {[%emt 0:01:52]} c4 {[%emt 0:00:12]} 6. Qxb6 {[%emt 0:00:02]} axb6 {[%emt 0:00:01]} 7. Bxb8 {[%emt 0:00:02]} Rxb8 {[%emt 0:00:05]} 8. Nbd2 {[%emt 0:00:05]} Bf5 {[%emt 0:00:16]} 9. a3 {[%emt 0:00:12]} h6 {[%emt 0:00:11]} 10. g3 {[%emt 0:00:01]} e6 {[%emt 0:00:13]} 11. Bg2 {[%emt 0:00:01]} b5 {[%emt 0:00:19]} 12. O-O {[%emt 0:00:07]} Be7 {[%emt 0:00:52]} 13. Ne5 {[%emt 0:00:02]} O-O {[%emt 0:01:32]} 14. Rfe1 {[%emt 0:00:02]} Rfd8 {[%emt 0:00:02]} 15. f3 {[%emt 0:00:05]} Bh7 {[%emt 0:00:26]} 16. e4 {[%emt 0:00:06]} Bd6 {[%emt 0:00:25]} 17. exd5 {[%emt 0:00:24]} Nxd5 {[%emt 0:00:41]} 18. f4 {[%emt 0:00:29]} Nb6 {[%emt 0:01:08]} 19. Ne4 {[%emt 0:01:29]} Na4 {[%emt 0:00:41]} 20. Nxd6 {[%emt 0:00:16]} Rxd6 {[%emt 0:00:04]} 21. Re2 {[%emt 0:00:01]} f6 {[%emt 0:00:21]} 22. Ng4 {[%emt 0:00:31]} Bd3 {[%emt 0:01:58]} 23. Rd2 {[%emt 0:00:07]} Bg6 {[%emt 0:00:11]} 24. Re1 {[%emt 0:00:19]} Be8 {[%emt 0:00:48]} 25. Ne3 {[%emt 0:01:46]} Bc6 {[%emt 0:00:20]} 26. Bh3 {[%emt 0:01:20]} Nc5 {[%emt 0:00:35]} 27. Bf1 {[%emt 0:01:44]} Ne4 {[%emt 0:01:01]} 28. Rde2 {[%emt 0:00:04]} f5 {[%emt 0:00:11]} 29. Nc2 {[%emt 0:00:57]} b6 {[%emt 0:00:18]} 30. Bg2 {[%emt 0:00:53]} Kf7 {[%emt 0:00:07]} 31. Ne3 {[%emt 0:00:40]} Bd5 {[%emt 0:01:04]} 32. Nc2 {[%emt 0:01:42]} Rg8 {[%emt 0:00:51]} 33. Rf1 {[%emt 0:00:23]} Ke7 {[%emt 0:00:56]} 34. Ne3 {[%emt 0:01:07]} Rd7 {[%emt 0:00:31]} 35. g4 {[%emt 0:01:16]} g6 {[%emt 0:00:16]} 36. Ra1 {[%emt 0:00:09]} Ra7 {[%emt 0:00:06]} 37. h3 {[%emt 0:00:22]} Kd6 {[%emt 0:00:29]} 38. Kh2 {[%emt 0:00:05]} Rga8 {[%emt 0:00:23]} 39. Rg1 {[%emt 0:00:29]} Rh8 {[%emt 0:00:45]} 40. Bh1 {[%emt 0:00:19]} Rf7 {[%emt 0:00:57]} 41. gxf5 {[%emt 0:00:42]} gxf5 {[%emt 0:00:02]} 42. Rg6 {[%emt 0:00:15]} Kc7 {[%emt 0:01:17]} 43. Bxe4 {[%emt 0:00:24]} fxe4 {[%emt 0:00:06]} 44. f5 {[%emt 0:00:02]} Re8 {[%emt 0:00:30]} 45. Rxh6 {[%emt 0:00:31]} Bb7 {[%emt 0:00:15]} 46. fxe6 {[%emt 0:00:42]} Rfe7 {[%emt 0:00:07]} 47. d5 {[%emt 0:00:12]} Rf8 {[%emt 0:00:00]} 48. Rd2 {[%emt 0:00:10]} Kd6 {[%emt 0:00:03]} 49. Rh5 {[%emt 0:00:03]} Rf3 {[%emt 0:00:30]} 50. Nf5+ {[%emt 0:00:17]} Rxf5 {[%emt 0:00:11]} 51. Rxf5 {[%emt 0:00:01]} e3 {[%emt 0:00:01]} 52. Re2 {[%emt 0:00:02]} Bxd5 {[%emt 0:00:02]} 53. Rxe3 {[%emt 0:00:02]} Bxe6 {[%emt 0:00:07]} 54. Rxb5 {[%emt 0:00:04]} Kc6 {[%emt 0:00:14]} 55. Rbe5 {[%emt 0:00:02]} Kd6 {[%emt 0:00:01]} 56. Rxe6+ {[%emt 0:00:03]} 1-0

[Event "RUS-chT Men Rapid 2019"]
[Site "Sochi"]
[Date "2019.10.18"]
[Round "5.17"]
[White "Tsydypov, Zhamsaran"]
[Black "Nesterov, Arseniy"]
[Result "1-0"]
[ECO "C45"]
[WhiteElo "2553"]
[BlackElo "2484"]
[Annotator "ChessBase"]
[PlyCount "81"]
[EventDate "2019.10.18"]
[EventType "swiss"]
[EventCountry "RUS"]
[SourceTitle "playchess.com"]
[Source "ChessBase"]
[SourceQuality "1"]
[TimeControl "900+10"]

1. e4 {[%emt 0:00:00]} e5 {[%emt 0:00:00]} 2. Nf3 {[%emt 0:00:00]} Nc6 {[%emt 0:00:00]} 3. d4 {[%emt 0:00:14]} exd4 {[%emt 0:00:00]} 4. Nxd4 {[%emt 0:00:01]} Bc5 {[%emt 0:00:00]} 5. Nb3 {[%emt 0:00:05]} Bb6 {[%emt 0:00:05]} 6. Nc3 {[%emt 0:00:02]} Nf6 {[%emt 0:00:13]} 7. Bg5 {[%emt 0:00:11]} h6 {[%emt 0:00:17]} 8. Bh4 {[%emt 0:00:02]} O-O {[%emt 0:00:15]} 9. Qe2 {[%emt 0:00:05]} Nd4 {[%emt 0:01:01]} 10. Qd3 {[%emt 0:00:52]} Nxb3 {[%emt 0:00:23]} 11. axb3 {[%emt 0:00:01]} c6 {[%emt 0:02:55]} 12. O-O-O {[%emt 0:01:32]} Bc7 {[%emt 0:01:33]} 13. Kb1 {[%emt 0:00:25]} Re8 {[%emt 0:00:32]} 14. f3 {[%emt 0:00:14]} Be5 {[%emt 0:00:17]} 15. g4 {[%emt 0:00:34]} Qa5 {[%emt 0:00:34]} 16. Bg3 {[%emt 0:00:17]} d6 {[%emt 0:01:59]} 17. Be1 {[%emt 0:00:44]} Qc7 {[%emt 0:00:50]} 18. h4 {[%emt 0:00:01]} b5 {[%emt 0:00:11]} 19. g5 {[%emt 0:00:05]} Nh5 {[%emt 0:00:05]} 20. gxh6 {[%emt 0:00:46]} g6 {[%emt 0:00:06]} 21. Ne2 {[%emt 0:00:02]} a5 {[%emt 0:00:22]} 22. f4 {[%emt 0:00:26]} Nxf4 {[%emt 0:00:58]} 23. Nxf4 {[%emt 0:00:02]} Bxf4 {[%emt 0:00:01]} 24. h7+ {[%emt 0:00:23]} Kh8 {[%emt 0:00:13]} 25. h5 {[%emt 0:00:54]} g5 {[%emt 0:00:53]} 26. Bc3+ {[%emt 0:02:54]} Be5 {[%emt 0:00:01]} 27. Qxd6 {[%emt 0:00:01]} Qxd6 {[%emt 0:00:33]} 28. Rxd6 {[%emt 0:00:02]} Bxc3 {[%emt 0:00:17]} 29. bxc3 {[%emt 0:00:01]} b4 {[%emt 0:01:34]} 30. Bc4 {[%emt 0:03:00]} Be6 {[%emt 0:02:07]} 31. Bxe6 {[%emt 0:00:04]} Rxe6 {[%emt 0:00:02]} 32. Rxe6 {[%emt 0:00:07]} fxe6 {[%emt 0:00:01]} 33. Rg1 {[%emt 0:00:02]} Kxh7 {[%emt 0:00:30]} 34. Rxg5 {[%emt 0:00:13]} a4 {[%emt 0:00:38]} 35. cxb4 {[%emt 0:00:32]} axb3 {[%emt 0:00:01]} 36. c3 {[%emt 0:00:01]} Ra2 {[%emt 0:01:07]} 37. Rc5 {[%emt 0:00:07]} Kh6 {[%emt 0:00:01]} 38. Rxc6 {[%emt 0:00:14]} Kxh5 {[%emt 0:00:01]} 39. b5 {[%emt 0:00:20]} Kg5 {[%emt 0:00:03]} 40. b6 {[%emt 0:00:02]} Ra8 {[%emt 0:00:01]} 41. Rxe6 {[%emt 0:00:02]} 1-0

[Event "RUS-chT Men Rapid 2019"]
[Site "Sochi"]
[Date "2019.10.18"]
[Round "5.18"]
[White "Shubin, Kirill"]
[Black "Triapishko, Alexandr"]
[Result "1/2-1/2"]
[ECO "B13"]
[WhiteElo "2416"]
[BlackElo "2514"]
[Annotator "ChessBase"]
[PlyCount "64"]
[EventDate "2019.10.18"]
[EventType "swiss"]
[EventCountry "RUS"]
[SourceTitle "playchess.com"]
[Source "ChessBase"]
[SourceQuality "1"]
[TimeControl "900+10"]

1. e4 {[%emt 0:00:00]} c6 {[%emt 0:00:00]} 2. d4 {[%emt 0:00:00]} d5 {[%emt 0:00:00]} 3. exd5 {[%emt 0:00:00]} cxd5 {[%emt 0:00:00]} 4. Bd3 {[%emt 0:00:00]} Nf6 {[%emt 0:00:00]} 5. c3 {[%emt 0:00:00]} Bg4 {[%emt 0:00:00]} 6. Qc2 {[%emt 0:00:00]} Nc6 {[%emt 0:00:25]} 7. h3 {[%emt 0:00:45]} Bh5 {[%emt 0:02:13]} 8. Bf4 {[%emt 0:00:04]} e6 {[%emt 0:00:17]} 9. Nd2 {[%emt 0:00:04]} Bd6 {[%emt 0:00:48]} 10. Bxd6 {[%emt 0:00:02]} Qxd6 {[%emt 0:00:01]} 11. Ngf3 {[%emt 0:00:01]} O-O {[%emt 0:02:03]} 12. O-O {[%emt 0:00:05]} Rfc8 {[%emt 0:00:34]} 13. Qd1 {[%emt 0:03:34]} Rab8 {[%emt 0:02:07]} 14. a4 {[%emt 0:00:33]} Na5 {[%emt 0:00:22]} 15. Qe2 {[%emt 0:00:59]} a6 {[%emt 0:01:24]} 16. Rfe1 {[%emt 0:02:04]} Qb6 {[%emt 0:00:50]} 17. b4 {[%emt 0:01:21]} Nc6 {[%emt 0:01:29]} 18. a5 {[%emt 0:00:02]} Qc7 {[%emt 0:00:17]} 19. Qe3 {[%emt 0:01:43]} Bxf3 {[%emt 0:01:24]} 20. Nxf3 {[%emt 0:00:26]} h6 {[%emt 0:01:02]} 21. Rac1 {[%emt 0:00:29]} Re8 {[%emt 0:00:59]} 22. Bb1 {[%emt 0:01:17]} b6 {[%emt 0:00:22]} 23. axb6 {[%emt 0:00:41]} Rxb6 {[%emt 0:00:07]} 24. Qd3 {[%emt 0:01:56]} a5 {[%emt 0:00:22]} 25. bxa5 {[%emt 0:00:43]} Nxa5 {[%emt 0:00:02]} 26. Ne5 {[%emt 0:00:01]} Kf8 {[%emt 0:01:04]} 27. Re3 {[%emt 0:01:09]} Nc4 {[%emt 0:00:06]} 28. Re2 {[%emt 0:00:20]} Reb8 {[%emt 0:00:35]} 29. Ba2 {[%emt 0:00:04]} Nd6 {[%emt 0:00:30]} 30. c4 {[%emt 0:00:23]} dxc4 {[%emt 0:00:03]} 31. Bxc4 {[%emt 0:00:21]} Nxc4 {[%emt 0:00:23]} 32. Rxc4 {[%emt 0:00:01]} Rb1+ {[%emt 0:00:16]} 1/2-1/2